[Event "*** Titled Tuesday Blitz"]
[Site "Chess.com"]
[Date "2021.02.16"]
[Round "5"]
[White "noamapplesauce"]
[Black "Sokoloco"]
[Result "1-0"]
[WhiteElo "2151"]
[BlackElo "2450"]
[TimeControl "180+1"]
[EndTime "10:58:59 PST"]
[Termination "noamapplesauce won by checkmate"]

1. e4 {[%clk 0:01:14.1]} 1... g6 {[%clk 0:02:59.2]} 2. d4 {[%clk 0:01:14.1]}
2... Bg7 {[%clk 0:02:59.6]} 3. c3 {[%clk 0:01:14.6]} 3... d6 {[%clk 0:02:57.6]}
4. Nf3 {[%clk 0:01:14.9]} 4... a6 {[%clk 0:02:53.5]} 5. Bd3 {[%clk 0:01:15.1]}
5... b5 {[%clk 0:02:53.4]} 6. O-O {[%clk 0:01:15.6]} 6... Bb7 {[%clk 0:02:53.2]}
7. Re1 {[%clk 0:01:16.5]} 7... e5 {[%clk 0:02:42.2]} 8. a4 {[%clk 0:01:15]} 8...
c6 {[%clk 0:02:38.2]} 9. axb5 {[%clk 0:01:13.3]} 9... cxb5 {[%clk 0:02:37]} 10.
d5 {[%clk 0:00:58.4]} 10... Ne7 {[%clk 0:02:26.8]} 11. Nbd2 {[%clk 0:00:58.2]}
11... O-O {[%clk 0:02:20.5]} 12. Nf1 {[%clk 0:00:58]} 12... h6 {[%clk
0:02:05.5]} 13. Ng3 {[%clk 0:00:52.6]} 13... f5 {[%clk 0:02:05.3]} 14. exf5
{[%clk 0:00:52.3]} 14... gxf5 {[%clk 0:01:53.3]} 15. Nh4 {[%clk 0:00:45.8]}
15... e4 {[%clk 0:01:30.1]} 16. Bc2 {[%clk 0:00:44.8]} 16... Nd7 {[%clk
0:01:20.4]} 17. Qh5 {[%clk 0:00:42.9]} 17... Nf6 {[%clk 0:01:17.4]} 18. Qd1
{[%clk 0:00:39.9]} 18... Nfxd5 {[%clk 0:01:13.8]} 19. Bb3 {[%clk 0:00:36.6]}
19... Kh7 {[%clk 0:01:11.5]} 20. Nhxf5 {[%clk 0:00:34.4]} 20... Nxc3 {[%clk
0:00:46]} 21. bxc3 {[%clk 0:00:33.4]} 21... Nxf5 {[%clk 0:00:46.4]} 22. Nxf5
{[%clk 0:00:33.4]} 22... Rxf5 {[%clk 0:00:47]} 23. Qg4 {[%clk 0:00:20.6]} 23...
Qf8 {[%clk 0:00:33.7]} 24. Be3 {[%clk 0:00:19.5]} 24... Bxc3 {[%clk 0:00:30.2]}
25. Rac1 {[%clk 0:00:19.3]} 25... Bxe1 {[%clk 0:00:28.2]} 26. Rxe1 {[%clk
0:00:20.2]} 26... a5 {[%clk 0:00:21.2]} 27. Be6 {[%clk 0:00:19.6]} 27... Rf6
{[%clk 0:00:20.9]} 28. Rc1 {[%clk 0:00:17.1]} 28... Qe7 {[%clk 0:00:13.8]} 29.
Bf5+ {[%clk 0:00:12.9]} 29... Kh8 {[%clk 0:00:10.7]} 30. Bd4 {[%clk 0:00:13.2]}
30... Rg8 {[%clk 0:00:10.9]} 31. Qh4 {[%clk 0:00:12.2]} 31... Rxg2+ {[%clk
0:00:04.5]} 32. Kxg2 {[%clk 0:00:10.7]} 32... Qg7+ {[%clk 0:00:05.3]} 33. Kf1
{[%clk 0:00:10.2]} 33... Kg8 {[%clk 0:00:02.2]} 34. Bxf6 {[%clk 0:00:08.2]}
34... Qf7 {[%clk 0:00:02.6]} 35. Rc7 {[%clk 0:00:04.2]} 35... Qxc7 {[%clk
0:00:01.7]} 36. Be6+ {[%clk 0:00:04.2]} 36... Qf7 {[%clk 0:00:01.8]} 37. Bxf7+
{[%clk 0:00:04.4]} 37... Kxf7 {[%clk 0:00:02.7]} 38. Bd4 {[%clk 0:00:03.2]}
38... e3 {[%clk 0:00:03.6]} 39. Qf6+ {[%clk 0:00:03.4]} 39... Ke8 {[%clk
0:00:03.6]} 40. fxe3 {[%clk 0:00:04.3]} 40... Kd7 {[%clk 0:00:04.5]} 41. Qxh6
{[%clk 0:00:04.7]} 41... Be4 {[%clk 0:00:05.4]} 42. Qh5 {[%clk 0:00:04.8]} 42...
Bd3+ {[%clk 0:00:06.3]} 43. Ke1 {[%clk 0:00:03.4]} 43... Kc6 {[%clk 0:00:07.2]}
44. Kd2 {[%clk 0:00:04.3]} 44... Bc4 {[%clk 0:00:07.9]} 45. Qh6 {[%clk
0:00:04.8]} 45... Be6 {[%clk 0:00:08.4]} 46. Qf6 {[%clk 0:00:05.5]} 46... Bd5
{[%clk 0:00:09.3]} 47. Qe7 {[%clk 0:00:06.1]} 47... Bc4 {[%clk 0:00:10]} 48. Qa7
{[%clk 0:00:06.6]} 48... Kd5 {[%clk 0:00:10.9]} 49. Qxa5 {[%clk 0:00:06.9]}
49... Ke4 {[%clk 0:00:10.9]} 50. Qb4 {[%clk 0:00:07.4]} 50... d5 {[%clk
0:00:11.1]} 51. Qd6 {[%clk 0:00:07.8]} 51... b4 {[%clk 0:00:11.6]} 52. Qc5
{[%clk 0:00:08.7]} 52... b3 {[%clk 0:00:11.4]} 53. Qb6 {[%clk 0:00:09.3]} 53...
Kf3 {[%clk 0:00:11.1]} 54. Kc3 {[%clk 0:00:10.2]} 54... Kg4 {[%clk 0:00:12]} 55.
Kb2 {[%clk 0:00:10.7]} 55... Kh3 {[%clk 0:00:12.9]} 56. Qd6 {[%clk 0:00:10.3]}
56... Kg2 {[%clk 0:00:13]} 57. Qg3+ {[%clk 0:00:11.2]} 57... Kf1 {[%clk
0:00:13.7]} 58. h4 {[%clk 0:00:11.8]} 58... Ke2 {[%clk 0:00:14.2]} 59. e4 {[%clk
0:00:12.3]} 59... Kd2 {[%clk 0:00:14.5]} 60. exd5 {[%clk 0:00:13.2]} 60... Bxd5
{[%clk 0:00:14.3]} 61. Qf4+ {[%clk 0:00:13.1]} 61... Kd3 {[%clk 0:00:14.3]} 62.
Qe5 {[%clk 0:00:13.9]} 62... Kc4 {[%clk 0:00:14.6]} 63. h5 {[%clk 0:00:14.8]}
63... Bf3 {[%clk 0:00:14.3]} 64. h6 {[%clk 0:00:15.7]} 64... Bd1 {[%clk
0:00:14.1]} 65. h7 {[%clk 0:00:15.7]} 65... Bh5 {[%clk 0:00:11.9]} 66. h8=Q
{[%clk 0:00:15]} 66... Bg6 {[%clk 0:00:12.2]} 67. Qc8+ {[%clk 0:00:15]} 67...
Kd3 {[%clk 0:00:13.1]} 68. Qe3# {[%clk 0:00:14.4]} 1-0

[Event "*** Titled Tuesday Blitz"]
[Site "Chess.com"]
[Date "2021.02.16"]
[Round "5"]
[White "Lion-Al-Messi"]
[Black "frankshar"]
[Result "0-1"]
[WhiteElo "2505"]
[BlackElo "2391"]
[TimeControl "180+1"]
[EndTime "10:59:01 PST"]
[Termination "frankshar won by resignation"]

1. e4 {[%clk 0:03:00.9]} 1... c6 {[%clk 0:02:59.5]} 2. Nf3 {[%clk 0:03:00.7]}
2... d5 {[%clk 0:02:57.2]} 3. Nc3 {[%clk 0:03:01.1]} 3... Nf6 {[%clk 0:02:57]}
4. e5 {[%clk 0:03:01.2]} 4... Ne4 {[%clk 0:02:57.1]} 5. Ne2 {[%clk 0:03:01.4]}
5... Qb6 {[%clk 0:02:56.6]} 6. d4 {[%clk 0:03:01.6]} 6... e6 {[%clk 0:02:56.7]}
7. Ng3 {[%clk 0:03:01.7]} 7... c5 {[%clk 0:02:55.6]} 8. c3 {[%clk 0:03:01.6]}
8... Bd7 {[%clk 0:02:47.8]} 9. Bd3 {[%clk 0:03:00.9]} 9... cxd4 {[%clk
0:02:46.3]} 10. Nxe4 {[%clk 0:02:57.1]} 10... dxe4 {[%clk 0:02:45.6]} 11. Bxe4
{[%clk 0:02:50.2]} 11... dxc3 {[%clk 0:02:45.7]} 12. bxc3 {[%clk 0:02:47.8]}
12... Bc6 {[%clk 0:02:45.7]} 13. Be3 {[%clk 0:02:41.1]} 13... Qc7 {[%clk
0:02:34.7]} 14. Nd2 {[%clk 0:02:22.9]} 14... Qxe5 {[%clk 0:02:15.4]} 15. Bd4
{[%clk 0:02:21.4]} 15... Qc7 {[%clk 0:01:56.8]} 16. O-O {[%clk 0:02:20.6]} 16...
Bd6 {[%clk 0:01:44.2]} 17. Qg4 {[%clk 0:02:06.4]} 17... Bxh2+ {[%clk 0:01:22.3]}
18. Kh1 {[%clk 0:02:05.6]} 18... Be5 {[%clk 0:01:23.2]} 19. f4 {[%clk 0:01:42]}
19... Bxd4 {[%clk 0:01:08.2]} 20. cxd4 {[%clk 0:01:42.9]} 20... f5 {[%clk
0:01:03.4]} 21. Qh5+ {[%clk 0:01:38.4]} 21... Qf7 {[%clk 0:00:40.7]} 22. Bxc6+
{[%clk 0:01:38.2]} 22... Nxc6 {[%clk 0:00:41.5]} 23. Qf3 {[%clk 0:01:38.8]}
23... O-O {[%clk 0:00:31.3]} 24. Nb3 {[%clk 0:01:38.4]} 24... Rfd8 {[%clk
0:00:30.3]} 25. Rad1 {[%clk 0:01:38.3]} 25... Rd5 {[%clk 0:00:30.1]} 26. Rfe1
{[%clk 0:01:38.2]} 26... Rad8 {[%clk 0:00:29.5]} 27. Qf2 {[%clk 0:01:33.8]}
27... b6 {[%clk 0:00:29.2]} 28. Kg1 {[%clk 0:01:31.6]} 28... Qf6 {[%clk
0:00:29.3]} 29. Rc1 {[%clk 0:01:04.2]} 29... Nxd4 {[%clk 0:00:27.8]} 30. Rc7
{[%clk 0:01:03.9]} 30... Nxb3 {[%clk 0:00:25.4]} 31. axb3 {[%clk 0:01:04.8]}
31... Rd1 {[%clk 0:00:18.2]} 32. Rxa7 {[%clk 0:00:47.5]} 32... Qd4 {[%clk
0:00:17.1]} 33. Rxd1 {[%clk 0:00:13.8]} 33... Qxd1+ {[%clk 0:00:17]} 34. Qf1
{[%clk 0:00:14]} 34... Qxf1+ {[%clk 0:00:17]} 35. Kxf1 {[%clk 0:00:14.9]} 35...
Rd4 {[%clk 0:00:15.2]} 36. g3 {[%clk 0:00:07.8]} 36... Rb4 {[%clk 0:00:15.1]}
37. Re7 {[%clk 0:00:06]} 37... Rxb3 {[%clk 0:00:14.7]} 38. Kf2 {[%clk
0:00:05.9]} 38... Rb2+ {[%clk 0:00:13.3]} 39. Kf3 {[%clk 0:00:06.4]} 39... Rb3+
{[%clk 0:00:13.8]} 40. Kf2 {[%clk 0:00:07]} 40... b5 {[%clk 0:00:13.1]} 41. Rxe6
{[%clk 0:00:06.8]} 41... Kf7 {[%clk 0:00:14]} 42. Rb6 {[%clk 0:00:06.1]} 42...
b4 {[%clk 0:00:14.2]} 43. Kg2 {[%clk 0:00:03.5]} 43... Rb2+ {[%clk 0:00:13.8]}
44. Kh3 {[%clk 0:00:03.3]} 44... h6 {[%clk 0:00:14]} 45. g4 {[%clk 0:00:02.5]}
45... fxg4+ {[%clk 0:00:10.3]} 46. Kxg4 {[%clk 0:00:03.4]} 46... b3 {[%clk
0:00:10.8]} 47. Kf5 {[%clk 0:00:03.8]} 47... Rb1 {[%clk 0:00:09.4]} 48. Rb7+
{[%clk 0:00:04.2]} 48... Ke8 {[%clk 0:00:09.3]} 49. Rxg7 {[%clk 0:00:03.4]}
49... b2 {[%clk 0:00:08.3]} 50. Rb7 {[%clk 0:00:03.3]} 50... h5 {[%clk
0:00:07.5]} 51. Kf6 {[%clk 0:00:03.1]} 51... h4 {[%clk 0:00:07.1]} 52. f5 {[%clk
0:00:03.4]} 52... h3 {[%clk 0:00:07.5]} 53. Rb8+ {[%clk 0:00:03.7]} 53... Kd7
{[%clk 0:00:07.9]} 54. Kf7 {[%clk 0:00:04.1]} 54... h2 {[%clk 0:00:08.3]} 55.
Rb7+ {[%clk 0:00:04.4]} 55... Kc6 {[%clk 0:00:07.7]} 56. Rxb2 {[%clk 0:00:02.4]}
56... Rxb2 {[%clk 0:00:08.5]} 57. Ke8 {[%clk 0:00:01.6]} 57... Re2+ {[%clk
0:00:08.6]} 58. Kd8 {[%clk 0:00:01.2]} 0-1

[Event "*** Titled Tuesday Blitz"]
[Site "Chess.com"]
[Date "2021.02.16"]
[Round "5"]
[White "MPGM"]
[Black "AlexTriapishko"]
[Result "0-1"]
[WhiteElo "2607"]
[BlackElo "2834"]
[TimeControl "180+1"]
[EndTime "10:59:04 PST"]
[Termination "AlexTriapishko won by resignation"]

1. c4 {[%clk 0:03:00]} 1... c5 {[%clk 0:02:52]} 2. Nc3 {[%clk 0:02:59.5]} 2...
Nc6 {[%clk 0:02:52.6]} 3. g3 {[%clk 0:02:59.8]} 3... g6 {[%clk 0:02:52.6]} 4.
Bg2 {[%clk 0:03:00]} 4... Bg7 {[%clk 0:02:53.5]} 5. b3 {[%clk 0:03:00.5]} 5...
e5 {[%clk 0:02:50.8]} 6. Bb2 {[%clk 0:02:53.8]} 6... Nge7 {[%clk 0:02:50.3]} 7.
e3 {[%clk 0:02:54.2]} 7... O-O {[%clk 0:02:50.6]} 8. Nge2 {[%clk 0:02:54.9]}
8... d6 {[%clk 0:02:50.1]} 9. O-O {[%clk 0:02:55.4]} 9... h5 {[%clk 0:02:48.8]}
10. h3 {[%clk 0:02:36.7]} 10... Be6 {[%clk 0:02:40.5]} 11. Nd5 {[%clk
0:02:11.5]} 11... Qd7 {[%clk 0:02:35.2]} 12. Kh2 {[%clk 0:02:10.6]} 12... Bxd5
{[%clk 0:02:32.4]} 13. cxd5 {[%clk 0:02:10.1]} 13... Nb4 {[%clk 0:02:33]} 14.
Nc3 {[%clk 0:02:04]} 14... Nd3 {[%clk 0:02:29.8]} 15. Ba3 {[%clk 0:02:02.6]}
15... f5 {[%clk 0:02:28.3]} 16. Qe2 {[%clk 0:01:43.4]} 16... e4 {[%clk
0:02:01.7]} 17. f3 {[%clk 0:01:39.9]} 17... exf3 {[%clk 0:01:26.1]} 18. Bxf3
{[%clk 0:01:31.4]} 18... Nb4 {[%clk 0:01:16.8]} 19. Bb2 {[%clk 0:01:27.1]} 19...
Kh7 {[%clk 0:00:45.7]} 20. d3 {[%clk 0:01:07.4]} 20... b5 {[%clk 0:00:42.7]} 21.
a3 {[%clk 0:01:01.8]} 21... Na6 {[%clk 0:00:42.4]} 22. g4 {[%clk 0:00:49.2]}
22... h4 {[%clk 0:00:33.1]} 23. Rae1 {[%clk 0:00:36.4]} 23... b4 {[%clk
0:00:30.7]} 24. axb4 {[%clk 0:00:25.4]} 24... Nxb4 {[%clk 0:00:30.4]} 25. Rg1
{[%clk 0:00:16.3]} 25... Be5+ {[%clk 0:00:26.5]} 26. Kh1 {[%clk 0:00:15.9]}
26... Rae8 {[%clk 0:00:23.2]} 27. Na4 {[%clk 0:00:13.2]} 27... Bxb2 {[%clk
0:00:18.8]} 28. Nxb2 {[%clk 0:00:14.1]} 28... Nexd5 {[%clk 0:00:17.4]} 29. gxf5
{[%clk 0:00:10.5]} 29... Qxf5 {[%clk 0:00:15.9]} 30. Be4 {[%clk 0:00:08.1]}
30... Qxh3+ {[%clk 0:00:14.9]} 31. Qh2 {[%clk 0:00:08.7]} 31... Qxh2+ {[%clk
0:00:15.3]} 32. Kxh2 {[%clk 0:00:09.6]} 32... Rf2+ {[%clk 0:00:14.9]} 33. Kh3
{[%clk 0:00:09.5]} 33... Rxe4 {[%clk 0:00:09]} 34. dxe4 {[%clk 0:00:09.4]} 34...
Nc3 {[%clk 0:00:09.5]} 35. Nc4 {[%clk 0:00:09.2]} 35... Nxe4 {[%clk 0:00:07.7]}
36. Rg4 {[%clk 0:00:09.8]} 36... Rf3+ {[%clk 0:00:03.5]} 37. Kg2 {[%clk
0:00:06.2]} 37... Rg3+ {[%clk 0:00:03.9]} 38. Rxg3 {[%clk 0:00:06.7]} 38... hxg3
{[%clk 0:00:04.2]} 39. Ra1 {[%clk 0:00:05.7]} 39... a6 {[%clk 0:00:03.7]} 40.
Rd1 {[%clk 0:00:05.8]} 40... d5 {[%clk 0:00:03.7]} 41. Ne5 {[%clk 0:00:05.2]}
41... Nc2 {[%clk 0:00:03.3]} 42. Ng4 {[%clk 0:00:04.3]} 42... Nc3 {[%clk
0:00:01.4]} 43. Rd3 {[%clk 0:00:03.9]} 43... Ne1+ {[%clk 0:00:01.1]} 44. Kxg3
{[%clk 0:00:03.8]} 44... Nxd3 {[%clk 0:00:02]} 45. e4 {[%clk 0:00:02.9]} 45...
Nxe4+ {[%clk 0:00:01.6]} 46. Kf3 {[%clk 0:00:02.8]} 46... Nc3 {[%clk 0:00:02.5]}
47. Ke3 {[%clk 0:00:03]} 47... Nb4 {[%clk 0:00:02.3]} 48. Kd2 {[%clk 0:00:02.7]}
48... Nb5 {[%clk 0:00:02.8]} 49. Nf6+ {[%clk 0:00:02.4]} 49... Kg7 {[%clk
0:00:03.7]} 50. Nd7 {[%clk 0:00:03]} 50... Nd4 {[%clk 0:00:04]} 51. Nxc5 {[%clk
0:00:03.1]} 51... a5 {[%clk 0:00:04.6]} 52. Kc3 {[%clk 0:00:03]} 52... Ndc6
{[%clk 0:00:05.5]} 53. Nd7 {[%clk 0:00:02.7]} 53... Kf7 {[%clk 0:00:05.3]} 54.
Nc5 {[%clk 0:00:03.2]} 54... Ke7 {[%clk 0:00:05.3]} 55. Na4 {[%clk 0:00:03.6]}
55... Kd6 {[%clk 0:00:06.1]} 56. Nb2 {[%clk 0:00:04.2]} 56... g5 {[%clk
0:00:06.2]} 57. Nd1 {[%clk 0:00:04.4]} 57... g4 {[%clk 0:00:06.5]} 58. Ne3
{[%clk 0:00:05]} 58... d4+ {[%clk 0:00:06.6]} 59. Kc4 {[%clk 0:00:05.2]} 59...
dxe3 {[%clk 0:00:07.1]} 0-1

[Event "*** Titled Tuesday Blitz"]
[Site "Chess.com"]
[Date "2021.02.16"]
[Round "5"]
[White "AryanTari"]
[Black "PavelShkapenko"]
[Result "1/2-1/2"]
[WhiteElo "2902"]
[BlackElo "2705"]
[TimeControl "180+1"]
[EndTime "10:59:08 PST"]
[Termination "Game drawn by repetition"]

1. d4 {[%clk 0:03:00.9]} 1... Nf6 {[%clk 0:02:59.4]} 2. Nf3 {[%clk 0:03:00.8]}
2... e6 {[%clk 0:02:59.5]} 3. Bf4 {[%clk 0:03:00.5]} 3... c5 {[%clk 0:02:59.8]}
4. e3 {[%clk 0:03:00.4]} 4... cxd4 {[%clk 0:02:58.5]} 5. exd4 {[%clk 0:03:00.6]}
5... b6 {[%clk 0:02:59.1]} 6. Bd3 {[%clk 0:02:55.8]} 6... Bb7 {[%clk 0:02:59.6]}
7. O-O {[%clk 0:02:55.8]} 7... Be7 {[%clk 0:02:59.9]} 8. c3 {[%clk 0:02:55.5]}
8... O-O {[%clk 0:02:59.6]} 9. h3 {[%clk 0:02:53.5]} 9... d6 {[%clk 0:02:59.4]}
10. Bh2 {[%clk 0:02:53.6]} 10... a6 {[%clk 0:02:59.1]} 11. a4 {[%clk 0:02:53.6]}
11... Nbd7 {[%clk 0:02:58.7]} 12. Nbd2 {[%clk 0:02:54]} 12... Re8 {[%clk
0:02:59]} 13. Re1 {[%clk 0:02:51.9]} 13... Bf8 {[%clk 0:02:59.1]} 14. Nc4 {[%clk
0:02:40.1]} 14... Qc7 {[%clk 0:02:58.9]} 15. Nfd2 {[%clk 0:02:35.6]} 15... Qc6
{[%clk 0:02:50.5]} 16. Bf1 {[%clk 0:02:35.2]} 16... h6 {[%clk 0:02:46.7]} 17.
Ne3 {[%clk 0:02:16.9]} 17... Nd5 {[%clk 0:02:40.5]} 18. c4 {[%clk 0:01:59.9]}
18... Nxe3 {[%clk 0:02:40.1]} 19. Rxe3 {[%clk 0:02:00.8]} 19... d5 {[%clk
0:02:20.2]} 20. Rc1 {[%clk 0:01:57.9]} 20... Nf6 {[%clk 0:02:20.2]} 21. Nf3
{[%clk 0:01:53.6]} 21... dxc4 {[%clk 0:01:58]} 22. Rxc4 {[%clk 0:01:54.5]} 22...
Qd5 {[%clk 0:01:53]} 23. Rc7 {[%clk 0:01:54.5]} 23... Re7 {[%clk 0:01:45.2]} 24.
Rec3 {[%clk 0:01:38.8]} 24... Rxc7 {[%clk 0:00:42]} 25. Rxc7 {[%clk 0:01:38.4]}
25... b5 {[%clk 0:00:42.6]} 26. Ne5 {[%clk 0:00:49.3]} 26... Rc8 {[%clk
0:00:30.9]} 27. Rxf7 {[%clk 0:00:35.1]} 27... Bd6 {[%clk 0:00:25.3]} 28. Rxf6
{[%clk 0:00:32.3]} 28... gxf6 {[%clk 0:00:23.4]} 29. Qg4+ {[%clk 0:00:32.5]}
29... Kf8 {[%clk 0:00:22.9]} 30. Nd7+ {[%clk 0:00:32.6]} 30... Kf7 {[%clk
0:00:20.4]} 31. Bxd6 {[%clk 0:00:25.4]} 31... Qxd6 {[%clk 0:00:19.8]} 32. Qh5+
{[%clk 0:00:23.8]} 32... Ke7 {[%clk 0:00:19.5]} 33. Nc5 {[%clk 0:00:23.1]} 33...
Bc6 {[%clk 0:00:18.1]} 34. Qxh6 {[%clk 0:00:20]} 34... Qxd4 {[%clk 0:00:14.9]}
35. Qg7+ {[%clk 0:00:15.1]} 35... Kd6 {[%clk 0:00:15.1]} 36. Qa7 {[%clk
0:00:14.7]} 36... Qxc5 {[%clk 0:00:13.9]} 37. Qg7 {[%clk 0:00:13.1]} 37... Qe5
{[%clk 0:00:10.3]} 38. b3 {[%clk 0:00:10.1]} 38... bxa4 {[%clk 0:00:09.7]} 39.
bxa4 {[%clk 0:00:11]} 39... Rb8 {[%clk 0:00:08.9]} 40. Qa7 {[%clk 0:00:06.1]}
40... Rb1 {[%clk 0:00:07.1]} 41. Qxa6 {[%clk 0:00:06.6]} 41... Qd5 {[%clk
0:00:05.6]} 42. Kh2 {[%clk 0:00:05.1]} 42... Qd4 {[%clk 0:00:04.2]} 43. Qe2
{[%clk 0:00:02.9]} 43... Qf4+ {[%clk 0:00:02.6]} 44. Kg1 {[%clk 0:00:03.2]}
44... Rb4 {[%clk 0:00:02.1]} 45. a5 {[%clk 0:00:02.9]} 45... Qd4 {[%clk
0:00:02.2]} 46. a6 {[%clk 0:00:02.6]} 46... Rb2 {[%clk 0:00:02.4]} 47. Qe1
{[%clk 0:00:02.5]} 47... Ra2 {[%clk 0:00:02.6]} 48. Qb1 {[%clk 0:00:02]} 48...
Ra4 {[%clk 0:00:02]} 49. Qe1 {[%clk 0:00:01.8]} 49... f5 {[%clk 0:00:02.4]} 50.
h4 {[%clk 0:00:02.2]} 50... Qxh4 {[%clk 0:00:01.7]} 51. Qd1+ {[%clk 0:00:02.1]}
51... Qd4 {[%clk 0:00:02.2]} 52. Qc1 {[%clk 0:00:02.6]} 52... Rc4 {[%clk
0:00:02.3]} 53. Qb1 {[%clk 0:00:02.9]} 53... Rb4 {[%clk 0:00:02.5]} 54. Qc1
{[%clk 0:00:03.3]} 54... Ra4 {[%clk 0:00:02.4]} 55. Qb1 {[%clk 0:00:03.6]} 55...
Ra1 {[%clk 0:00:02.6]} 56. Qb8+ {[%clk 0:00:03.9]} 56... Kd5 {[%clk 0:00:02.2]}
57. Qd8+ {[%clk 0:00:04.2]} 57... Ke5 {[%clk 0:00:02.6]} 58. Qh8+ {[%clk
0:00:04.3]} 58... Kd5 {[%clk 0:00:03]} 59. Qd8+ {[%clk 0:00:04.8]} 59... Ke5
{[%clk 0:00:03.3]} 60. Qh8+ {[%clk 0:00:05.1]} 60... Kd5 {[%clk 0:00:03.7]} 61.
Qd8+ {[%clk 0:00:05.4]} 1/2-1/2

[Event "*** Titled Tuesday Blitz"]
[Site "Chess.com"]
[Date "2021.02.16"]
[Round "5"]
[White "German_Bazeev"]
[Black "AliKa2810"]
[Result "1-0"]
[WhiteElo "2730"]
[BlackElo "2554"]
[TimeControl "180+1"]
[EndTime "10:59:09 PST"]
[Termination "German_Bazeev won by resignation"]

1. d4 {[%clk 0:03:00.9]} 1... Nf6 {[%clk 0:02:59.5]} 2. Nf3 {[%clk 0:03:01.8]}
2... d5 {[%clk 0:02:59.2]} 3. c4 {[%clk 0:03:02.7]} 3... e6 {[%clk 0:02:59.4]}
4. g3 {[%clk 0:03:03.2]} 4... Bb4+ {[%clk 0:02:58.5]} 5. Bd2 {[%clk 0:03:02.7]}
5... Bd6 {[%clk 0:02:58.8]} 6. Bg2 {[%clk 0:03:03.3]} 6... O-O {[%clk
0:02:58.1]} 7. O-O {[%clk 0:03:03.9]} 7... c6 {[%clk 0:02:58.5]} 8. Bg5 {[%clk
0:03:04.5]} 8... Nbd7 {[%clk 0:02:56.4]} 9. Qc2 {[%clk 0:03:04.8]} 9... h6
{[%clk 0:02:56.6]} 10. Bxf6 {[%clk 0:03:04]} 10... Nxf6 {[%clk 0:02:56.7]} 11.
Nbd2 {[%clk 0:03:04.9]} 11... b6 {[%clk 0:02:55.4]} 12. e4 {[%clk 0:03:04.9]}
12... dxe4 {[%clk 0:02:55.3]} 13. Nxe4 {[%clk 0:03:05.8]} 13... Nxe4 {[%clk
0:02:55.6]} 14. Qxe4 {[%clk 0:03:06.4]} 14... Bb7 {[%clk 0:02:56.1]} 15. Ne5
{[%clk 0:02:51.7]} 15... Rc8 {[%clk 0:02:50.1]} 16. Rad1 {[%clk 0:02:49.7]}
16... Qc7 {[%clk 0:02:47.2]} 17. c5 {[%clk 0:02:47.1]} 17... bxc5 {[%clk
0:02:41.6]} 18. Nd7 {[%clk 0:02:47.6]} 18... Rfd8 {[%clk 0:02:15.8]} 19. Nxc5
{[%clk 0:02:45.7]} 19... Qb6 {[%clk 0:02:01]} 20. Qc2 {[%clk 0:02:37.6]} 20...
e5 {[%clk 0:01:39.3]} 21. Bh3 {[%clk 0:01:45.8]} 21... Rb8 {[%clk 0:01:34.1]}
22. Nd7 {[%clk 0:01:37.7]} 22... Rxd7 {[%clk 0:01:34]} 23. Bxd7 {[%clk
0:01:38.2]} 23... exd4 {[%clk 0:01:34.6]} 24. Bh3 {[%clk 0:01:28.2]} 24... c5
{[%clk 0:01:34]} 25. b3 {[%clk 0:01:19.5]} 25... Qc6 {[%clk 0:01:24.5]} 26. f3
{[%clk 0:01:19.7]} 26... Ba6 {[%clk 0:01:20.2]} 27. Rfe1 {[%clk 0:01:19.7]}
27... Qxf3 {[%clk 0:01:17.7]} 28. Bg2 {[%clk 0:01:12.1]} 28... Qg4 {[%clk
0:01:14.1]} 29. Qe4 {[%clk 0:01:10.5]} 29... Qxe4 {[%clk 0:01:12.6]} 30. Bxe4
{[%clk 0:01:09.8]} 30... Bb7 {[%clk 0:00:58.2]} 31. Bxb7 {[%clk 0:01:09]} 31...
Rxb7 {[%clk 0:00:59.1]} 32. Re8+ {[%clk 0:01:01.5]} 32... Kh7 {[%clk 0:00:58.6]}
33. Kg2 {[%clk 0:00:56.9]} 33... h5 {[%clk 0:00:56.3]} 34. Kf3 {[%clk
0:00:56.2]} 34... Kg6 {[%clk 0:00:48.3]} 35. Ke4 {[%clk 0:00:54.9]} 35... Rd7
{[%clk 0:00:33.1]} 36. Kd3 {[%clk 0:00:47.7]} 36... h4 {[%clk 0:00:19.1]} 37.
gxh4 {[%clk 0:00:47]} 37... Bxh2 {[%clk 0:00:19.9]} 38. Rd2 {[%clk 0:00:41.1]}
38... Bd6 {[%clk 0:00:18]} 39. Rg2+ {[%clk 0:00:41.7]} 39... Kf6 {[%clk
0:00:15.5]} 40. h5 {[%clk 0:00:39.7]} 40... Bf4 {[%clk 0:00:10.3]} 41. Re4
{[%clk 0:00:24.1]} 41... Be3 {[%clk 0:00:10.2]} 42. Rc2 {[%clk 0:00:22.3]} 42...
g6 {[%clk 0:00:10.2]} 43. hxg6 {[%clk 0:00:21.5]} 43... fxg6 {[%clk 0:00:11.1]}
44. Rxc5 {[%clk 0:00:21.4]} 44... g5 {[%clk 0:00:11.6]} 45. b4 {[%clk
0:00:18.2]} 45... Rh7 {[%clk 0:00:11.2]} 46. a4 {[%clk 0:00:09.3]} 46... Rh2
{[%clk 0:00:11]} 47. Re8 {[%clk 0:00:08.4]} 47... Rd2+ {[%clk 0:00:10]} 48. Kc4
{[%clk 0:00:08.6]} 48... Rc2+ {[%clk 0:00:09.6]} 49. Kd5 {[%clk 0:00:07.8]}
49... d3 {[%clk 0:00:07.5]} 50. Rxe3 {[%clk 0:00:05.3]} 50... d2 {[%clk
0:00:07.2]} 51. Rd3 {[%clk 0:00:04.6]} 51... Rb2 {[%clk 0:00:05.7]} 52. Rc4
{[%clk 0:00:04.8]} 52... Kf5 {[%clk 0:00:04.4]} 53. Rcd4 {[%clk 0:00:05.1]}
53... g4 {[%clk 0:00:04.7]} 54. Rxd2 {[%clk 0:00:05.6]} 54... Rb3 {[%clk
0:00:04.6]} 55. Rf2+ {[%clk 0:00:05.6]} 55... Kg5 {[%clk 0:00:04.5]} 56. Rg2
{[%clk 0:00:06.3]} 56... g3 {[%clk 0:00:04.5]} 57. b5 {[%clk 0:00:07]} 57... Ra3
{[%clk 0:00:04.4]} 58. Kc5 {[%clk 0:00:07]} 58... Rc3+ {[%clk 0:00:04.5]} 59.
Kb4 {[%clk 0:00:06.9]} 59... Rf3 {[%clk 0:00:05.1]} 60. Rc4 {[%clk 0:00:06.7]}
60... Re3 {[%clk 0:00:05.2]} 61. Rc1 {[%clk 0:00:07.2]} 61... Rf3 {[%clk
0:00:05]} 62. Rcg1 {[%clk 0:00:07.8]} 62... Kg4 {[%clk 0:00:05]} 63. Rxg3+
{[%clk 0:00:08.3]} 63... Rxg3 {[%clk 0:00:05.4]} 64. Rxg3+ {[%clk 0:00:09.2]}
64... Kxg3 {[%clk 0:00:06.2]} 65. a5 {[%clk 0:00:10.1]} 1-0